bitfinex-derivatives/quotes_SOLF0:USTF0_20241218
["timestamp","ask_amount","ask_price","bid_price","bid_amount"]
[1734515710369,7.17540774,217.2,217.16,2.3029]
[1734515710570,9.47800774,217.2,217.17,4.8229759]
[1734515710966,9.47800774,217.2,217.16,2.3029]
[1734515711469,9.47800774,217.2,217.17,4.82918983]
[1734515711869,9.47800774,217.2,217.18,4.82918983]
[1734515712066,9.47800774,217.2,217.16,2.3029]
[1734515712468,9.47800774,217.2,217.17,4.82938793]
[1734515712864,9.47800774,217.2,217.16,2.3029]
[1734515713168,7.17540774,217.2,217.17,4.82960889]
[1734515713369,2.3027,217.19,217.16,2.3029]
[1734515713974,2.3027,217.19,217.17,4.8298155]
[1734515714272,2.3027,217.19,217.16,2.3029]
[1734515714675,2.3027,217.19,217.17,4.82998894]
[1734515714873,2.3027,217.19,217.16,2.3029]
[1734515715268,7.17540774,217.2,217.17,4.83000353]
[1734515715269,9.47800774,217.2,217.17,4.83000353]
[1734515715472,9.47800774,217.2,217.16,2.3029]
[1734515716073,9.47800774,217.2,217.17,4.83018368]
[1734515716272,9.47800774,217.2,217.16,2.3029]
[1734515716466,7.17540774,217.2,217.09,2.9663]
[1734515716669,7.17540774,217.18,217.11,7.17540774]
[1734515716975,7.17540774,217.18,217.12,4.83176531]
[1734515717174,9.47820774,217.18,217.14,2.3031]
[1734515717373,5.48886109,217.23,217.15,12.00717305]
[1734515717570,7.17540774,217.22,217.15,12.00717305]
[1734515717767,2.3025,217.21,217.17,2.3028]
[1734515719175,2.3026,217.2,217.17,2.3028]
[1734515720570,2.3026,217.2,217.16,2.303]
[1734515720972,2.3026,217.2,217.17,4.83631275]
[1734515721171,9.47800774,217.2,217.16,2.303]
[1734515721777,9.47800774,217.2,217.17,4.83649511]
[1734515722168,9.47800774,217.2,217.16,2.303]
[1734515722579,9.47800774,217.2,217.17,4.83657844]
[1734515722975,9.47800774,217.2,217.16,2.303]
[1734515723378,9.47800774,217.2,217.17,4.83674649]
[1734515723977,9.47800774,217.2,217.16,2.303]
[1734515724374,9.47800774,217.2,217.17,4.83666286]
[1734515724576,9.47800774,217.2,217.16,2.303]
[1734515725178,9.47800774,217.2,217.17,4.83671832]
[1734515725374,9.47800774,217.2,217.16,2.303]
[1734515725778,9.47800774,217.2,217.17,4.83664513]
[1734515725976,9.47800774,217.2,217.16,2.303]
[1734515726781,9.47800774,217.2,217.17,4.83659984]
[1734515726987,9.47800774,217.2,217.16,2.303]
[1734515727382,9.47800774,217.2,217.17,4.8365071]
[1734515727586,9.47800774,217.2,217.16,2.303]
[1734515728182,2.3026,217.2,217.17,4.83662148]
[1734515728385,2.3026,217.2,217.16,2.303]
[1734515728987,2.3026,217.2,217.17,4.8366002]
[1734515729382,2.3026,217.2,217.16,2.303]
[1734515731278,2.3026,217.2,217.17,4.83658634]
[1734515731479,2.3026,217.2,217.16,2.303]
[1734515731884,2.3022,217.24,217.19,7.17540774]
[1734515732991,2.3022,217.24,217.2,4.8357018]
[1734515733187,2.3022,217.24,217.19,7.17540774]
[1734515733386,2.3022,217.24,217.2,2.3025]
[1734515738198,9.47760774,217.24,217.2,2.3025]
[1734515739897,9.47760774,217.24,217.17,7.17540774]
[1734515740105,7.17540774,217.24,217.19,7.17540774]
[1734515741100,7.17540774,217.24,217.22,2.3023]
[1734515741996,7.17540774,217.24,217.19,7.17540774]
[1734515742196,7.17540774,217.24,217.23,2.3022]
[1734515742594,7.17540774,217.24,217.19,7.17540774]
[1734515743098,7.17540774,217.24,217.22,2.3023]
[1734515744408,7.17540774,217.24,217.21,2.3024]
[1734515747108,9.47750774,217.24,217.21,2.3024]
[1734515751713,2.3021,217.24,217.21,2.3024]
[1734515755412,2.3021,217.25,217.22,4.83810211]
[1734515755607,2.3021,217.25,217.21,2.3024]
[1734515756112,2.3021,217.25,217.22,4.83782606]
[1734515756313,2.3021,217.25,217.21,2.3024]
[1734515757111,197.49181744,217.26,217.17,3.1446]
[1734515757316,7.17540774,217.24,217.2,2.3025]
[1734515758318,2.3022,217.23,217.2,2.3025]
[1734515759716,7.17540774,217.22,217.08,51.4548817]
[1734515760020,7.17540774,217.19,217.11,7.17540774]
[1734515760416,7.17540774,217.19,217.12,4.83873211]
[1734515760616,7.17540774,217.19,217.13,4.83873211]
[1734515760917,7.17540774,217.19,217.11,7.17540774]
[1734515760918,7.17540774,217.19,217.14,4.83873211]
[1734515761118,190.3164097,217.23,217.14,4.83873211]
[1734515761314,7.17540774,217.18,217.11,7.17540774]
[1734515761618,2.303,217.17,217.13,2.3033]
[1734515761819,7.17540774,217.18,217.13,2.3033]
[1734515762118,7.17540774,217.18,217.14,4.8381288]
[1734515762316,7.17540774,217.18,217.12,2.3033]
[1734515762823,7.17540774,217.18,217.11,7.17540774]
[1734515763021,2.303,217.17,217.13,2.3033]
[1734515764417,7.17540774,217.18,217.13,2.3033]
[1734515764618,190.3164097,217.23,217.13,2.3033]
[1734515764619,2.303,217.16,217.13,2.3033]
[1734515764815,7.17540774,217.17,217.13,2.3033]
[1734515766419,9.47830774,217.17,217.13,2.3033]
[1734515771123,2.3029,217.17,217.13,2.3033]
[1734515772724,190.3164097,217.24,217.14,7.17540774]
[1734515772925,2.3026,217.2,217.16,2.3029]
[1734515773918,7.17540774,217.22,217.16,7.17540774]
[1734515774121,7.17540774,217.27,217.2,7.17540774]
[1734515775319,5.5677247,217.26,217.2,7.17540774]
[1734515775721,7.17540774,217.22,217.1,3.0264]
[1734515775916,7.17540774,217.22,217.16,7.17540774]
[1734515776423,2.3023,217.23,217.18,7.17540774]
[1734515776622,12.74313244,217.26,217.18,7.17540774]
[1734515777326,9.47760774,217.24,217.1,3.0264]
[1734515777520,2.3022,217.24,217.17,7.17540774]
[1734515777721,2.3022,217.24,217.11,4.82990084]
[1734515777921,2.3022,217.24,217.19,2.3026]
[1734515778721,2.3022,217.24,217.18,7.17540774]
[1734515778928,2.3022,217.24,217.2,2.3025]
[1734515782322,5.5677247,217.26,217.2,2.3025]
[1734515782323,28.32320344,217.29,217.2,7.17540774]
[1734515782524,259.39606728,217.3,217.2,7.17540774]
[1734515782525,7.17540774,217.28,217.21,4.82951074]
[1734515782830,7.17540774,217.28,217.2,7.17540774]
[1734515783229,7.17540774,217.28,217.21,4.8291589]
[1734515783430,2.3019,217.27,217.23,2.3022]
[1734515783725,7.17540774,217.28,217.23,2.3022]
[1734515784631,2.3018,217.27,217.23,2.3022]
[1734515788235,7.17540774,217.26,217.23,2.3022]
[1734515788435,9.47730774,217.26,217.23,2.3022]
[1734515788728,2.3019,217.26,217.23,2.3022]
[1734515793133,69.07965758,217.3,217.23,2.3022]
[1734515793442,190.3164097,217.32,217.25,7.17540774]
[1734515793732,38.56753518,217.35,217.32,2.3013]
[1734515793733,190.3164097,217.35,217.32,2.3013]
[1734515793934,7.17540774,217.34,217.18,4.6055]
[1734515794135,7.17540774,217.32,217.25,7.17540774]
[1734515794929,2.3015,217.31,217.27,2.3017]
[1734515797040,2.3016,217.29,217.22,2.3023]
[1734515797340,195.91108782,217.38,217.22,7.17540774]
[1734515797341,7.17540774,217.3,217.22,7.17540774]
[1734515797536,7.17540774,217.28,217.22,7.17540774]
[1734515798245,2.3019,217.27,217.23,2.3022]
[1734515798937,2.3017,217.28,217.24,2.302]
[1734515801737,7.17540774,217.26,216.86,250.8312695]
[1734515801941,27.65,217.34,217.09,10.22740774]
[1734515801942,7.17540774,217.17,217.09,10.22740774]
[1734515802344,9.47830774,217.17,217.1,4.81839913]
[1734515802641,7.17540774,217.17,217.09,10.22740774]
[1734515802845,2.303,217.16,217.12,2.3033]
[1734515803144,2.303,217.16,217.09,10.22740774]
[1734515803145,7.17540774,217.17,217.09,10.22740774]
[1734515803532,7.17540774,217.17,217.11,7.17540774]
[1734515804440,7.17540774,217.17,217.13,2.3033]
[1734515804441,9.47830774,217.17,217.13,2.3033]
[1734515806437,21.00540774,217.14,216.88,79.22602166]
[1734515806640,13.83,217.18,217.0,7.17540774]
[1734515806843,7.17540774,217.07,217.0,7.17540774]
[1734515807142,13.83,217.18,217.02,2.3044]
[1734515807338,194.9211097,217.23,217.04,7.17540774]
[1734515807339,190.3164097,217.23,217.04,7.17540774]
[1734515807541,7.17540774,217.12,217.04,7.17540774]
[1734515808343,13.83,217.23,217.06,7.17540774]
[1734515808541,7.17540774,217.15,217.03,1.4578]
[1734515808738,7.17540774,217.11,217.03,1.4578]
[1734515809045,7.17540774,217.11,217.04,7.17540774]
[1734515809344,7.17540774,217.11,217.03,1.4578]
[1734515809345,7.17540774,217.12,217.06,7.17540774]
[1734515810442,7.17540774,217.12,217.08,2.3038]
[1734515810939,7.17540774,217.12,217.06,7.17540774]
[1734515811144,7.17540774,217.14,217.1,2.3036]
[1734515813446,2.3031,217.15,217.1,2.3036]
[1734515813746,7.17540774,217.13,217.1,2.3036]
[1734515815140,7.17540774,217.13,217.03,1.4578]
[1734515815141,7.17540774,217.11,217.03,1.4578]
[1734515815346,7.17540774,217.11,217.03,8.63320774]
[1734515816048,74.25045619,217.22,217.03,1.4578]
[1734515816049,7.17540774,217.09,217.03,1.4578]
[1734515816249,9.47910774,217.09,217.03,1.4578]
[1734515817449,9.47910774,217.09,217.04,2.3042]
[1734515818646,7.17540774,217.05,216.87,4.6121]
[1734515818950,7.17540774,217.0,216.93,7.17540774]
[1734515819355,9.48010774,217.0,216.95,2.3052]
[1734515820148,7.17540774,217.0,216.93,7.17540774]
[1734515820446,9.48000774,217.02,216.96,2.305]
[1734515820750,2.3054,216.94,216.89,3.22792642]
[1734515820948,7.17540774,216.94,216.89,0.92212642]
[1734515821145,7.17540774,216.94,216.87,7.17540774]
[1734515821550,9.48070774,216.94,216.89,2.3058]
[1734515821747,9.48070774,216.94,216.87,7.17540774]
[1734515823453,9.48070774,216.94,216.9,2.3057]
[1734515823655,7.17540774,216.94,216.9,2.3057]
[1734515824365,7.17540774,216.94,216.87,7.17540774]
[1734515824549,7.17540774,216.94,216.91,2.3056]
[1734515828461,7.17540774,216.94,216.87,7.17540774]
[1734515828662,7.17540774,216.94,216.91,2.3056]
[1734515832559,7.17540774,216.94,216.89,7.17540774]
[1734515833161,7.17540774,216.94,216.92,2.3054]
[1734515834161,5.46825746,217.02,216.93,7.17540774]
[1734515834366,13.83,217.13,216.95,7.17540774]
[1734515834565,7.17540774,217.01,216.95,7.17540774]
[1734515834866,2.3044,217.03,216.95,7.17540774]
[1734515835067,7.17540774,217.01,216.96,2.305]
[1734515835366,7.17540774,217.01,216.95,7.17540774]
[1734515835764,7.17540774,217.01,216.91,3.1021]
[1734515835969,7.17540774,217.01,216.98,2.3048]
[1734515840970,7.17540774,217.01,216.91,3.1021]
[1734515840971,7.17540774,216.99,216.91,3.1021]
[1734515841169,7.17540774,216.97,216.91,10.27750774]
[1734515841370,7.17540774,216.97,216.91,3.1021]
[1734515842373,7.17540774,216.95,216.91,1.5666]
[1734515843075,9.48060774,216.95,216.92,2.3054]
[1734515843468,7.17540774,216.95,216.92,2.3054]
[1734515843874,7.17540774,216.95,216.92,2.3055]
[1734515844372,9.48060774,216.95,216.92,2.3055]
[1734515845275,7.17540774,216.95,216.91,1.5666]
[1734515846576,9.48060774,216.95,216.92,2.3055]
[1734515846878,7.17540774,216.93,216.92,2.3055]
[1734515847578,7.17540774,216.93,216.9,2.3057]
[1734515848172,7.17540774,216.93,216.88,2.3059]
[1734515848466,7.17540774,216.93,216.87,7.17540774]
[1734515848871,7.17540774,216.93,216.91,2.3056]
[1734515852876,7.17540774,216.93,216.88,2.3059]
[1734515853075,7.17540774,216.93,216.87,7.17540774]
[1734515853379,7.17540774,216.93,216.91,2.3056]
[1734515853776,2.3053,216.95,216.91,2.3056]
[1734515854274,7.17540774,216.94,216.91,2.3056]
[1734515854474,9.48070774,216.94,216.91,2.3056]
[1734515857277,9.48070774,216.94,216.92,2.3055]
[1734515857983,9.48070774,216.94,216.87,7.17540774]
[1734515858175,9.48070774,216.94,216.91,2.3056]
[1734515859075,7.17540774,216.92,216.8,2.9809]
[1734515859382,7.17540774,216.91,216.84,7.17540774]
[1734515860478,9.48110774,216.91,216.8,4.5071]
[1734515860678,7.17540774,216.91,216.83,7.17540774]
[1734515861076,7.17540774,216.91,216.87,2.306]
[1734515861077,2.3058,216.9,216.87,2.306]
[1734515861776,7.17540774,216.89,216.87,2.306]
[1734515863277,7.17540774,216.89,216.88,2.3059]
[1734515865579,246.54110303,216.99,216.88,2.3059]
[1734515865786,7.17540774,216.9,216.88,2.3059]
[1734515868283,9.48120774,216.9,216.83,7.17540774]
[1734515869383,2.3058,216.9,216.83,7.17540774]
[1734515869585,7.17540774,216.89,216.88,2.3059]
[1734515870683,7.73818366,216.91,216.88,2.3059]
[1734515870884,7.17540774,216.89,216.88,2.3059]
[1734515872889,7.17540774,216.89,216.8,4.5071]
[1734515873188,5.43258366,216.91,216.82,7.17540774]
[1734515873397,5.43258366,216.91,216.84,7.17540774]
[1734515873687,7.17540774,216.9,216.84,7.17540774]
[1734515874488,7.17540774,216.9,216.88,2.3059]
[1734515875889,9.48110774,216.9,216.88,2.3059]
[1734515876491,9.48110774,216.9,216.8,4.5071]
[1734515876693,7.17540774,216.88,216.81,7.17540774]
[1734515877888,7.17540774,216.9,216.89,2.3058]
[1734515880600,7.17540774,216.9,216.88,2.3059]
[1734515881591,2.3059,216.89,216.86,2.3062]
[1734515881792,7.17540774,216.88,216.86,2.3062]
[1734515883602,7.17540774,216.88,216.87,2.3061]
[1734515885100,7.17540774,216.9,216.87,2.3061]
[1734515885302,7.17540774,216.9,216.88,2.3059]
[1734515886602,2.3057,216.91,216.88,2.3059]
[1734515887003,7.17540774,216.9,216.88,2.3059]
[1734515888300,2.3057,216.91,216.88,2.3059]
[1734515888505,7.17540774,216.89,216.88,2.3059]
[1734515888700,2.3057,216.91,216.88,2.3059]
[1734515889009,7.17540774,216.9,216.88,2.3059]
[1734515889605,2.3057,216.91,216.88,2.3059]
[1734515889811,7.17540774,216.9,216.88,2.3059]
[1734515890307,2.3057,216.91,216.88,2.3059]
[1734515890611,7.17540774,216.9,216.88,2.3059]
[1734515890813,2.3057,216.91,216.88,2.3059]
[1734515891108,9.48110774,216.91,216.88,2.3059]
[1734515892112,9.48130774,216.89,216.82,2.3065]
[1734515892308,7.17540774,216.87,216.8,11.68250774]
[1734515892910,7.17540774,216.87,216.85,2.3062]
[1734515894212,2.306,216.88,216.85,2.3062]
[1734515894413,9.48140774,216.88,216.85,2.3062]
[1734515896715,7.17540774,216.86,216.85,2.3062]
[1734515897809,5.45995737,216.92,216.8,11.68250774]
[1734515898013,7.17540774,216.89,216.87,2.306]
[1734515900621,2.3058,216.9,216.87,2.306]
[1734515900821,7.17540774,216.89,216.87,2.306]
[1734515901420,9.48130774,216.89,216.85,2.3062]
[1734515901715,9.48130774,216.89,216.8,4.5071]
[1734515901716,7.17540774,216.89,216.81,7.17540774]
[1734515901917,7.17540774,216.89,216.83,7.17540774]
[1734515902224,7.17540774,216.89,216.86,2.3061]
[1734515902418,7.17540774,216.89,216.87,4.80758494]
[1734515902719,7.17540774,216.89,216.88,4.80758494]
[1734515904117,9.48120774,216.89,216.88,4.80758494]
[1734515904518,9.48120774,216.89,216.86,2.3061]
[1734515904919,9.48120774,216.89,216.87,4.81232655]
[1734515905219,7.17540774,216.89,216.85,2.3062]
[1734515905420,7.17540774,216.87,216.85,2.3062]
[1734515905621,7.17540774,216.87,216.86,4.81250644]
[1734515906425,2.306,216.88,216.86,4.81250644]
[1734515906622,9.48140774,216.88,216.86,4.81250644]
[1734515906824,9.48140774,216.88,216.87,4.81250644]
[1734515908121,2.306,216.88,216.87,4.81250644]
[1734515908326,16.30402218,216.92,216.87,4.81250644]
[1734515908528,2.3058,216.9,216.87,2.306]
[1734515908728,9.48120774,216.9,216.88,4.81223873]
[1734515909025,9.48120774,216.9,216.87,2.306]
[1734515909627,9.48120774,216.9,216.88,4.81218992]
[1734515910022,9.48120774,216.9,216.89,4.81218992]
[1734515910625,9.48120774,216.9,216.87,2.306]
[1734515910825,9.48120774,216.9,216.89,4.81206842]
[1734515911023,9.48120774,216.9,216.88,4.81206842]
[1734515911227,9.48120774,216.9,216.87,2.306]
[1734515911726,2.3058,216.9,216.87,2.306]
[1734515911922,7.76555737,216.92,216.88,7.11806338]
[1734515912229,7.17540774,216.91,216.89,4.81216338]
[1734515912428,7.17540774,216.91,216.9,4.81216338]
[1734515912826,7.17540774,216.91,216.82,7.17540774]
[1734515913033,7.17540774,216.89,216.8,4.5071]
[1734515913232,2.3057,216.91,216.87,2.306]
[1734515913531,7.17540774,216.9,216.87,2.306]
[1734515916333,7.17540774,216.9,216.88,4.81160113]
[1734515916935,2.3058,216.89,216.84,2.3064]
[1734515917133,5.45995737,216.92,216.8,4.5071]
[1734515917134,7.17540774,216.88,216.8,4.5071]
[1734515917533,9.48140774,216.88,216.85,2.3062]
[1734515917731,5.45995737,216.92,216.83,7.17540774]
[1734515917932,7.17540774,216.91,216.83,7.17540774]
[1734515918132,9.48100774,216.91,216.85,2.3062]
[1734515918432,9.48100774,216.91,216.83,7.17540774]
[1734515918636,2.3056,216.91,216.83,7.17540774]
[1734515918826,9.48100774,216.91,216.87,2.306]
[1734515919533,9.48100774,216.91,216.88,4.81178001]
[1734515919738,7.17540774,216.89,216.88,4.81178001]
[1734515920035,7.17540774,216.89,216.87,2.306]
[1734515922737,2.306,216.88,216.85,2.3062]
[1734515922932,7.17540774,216.87,216.86,4.81229213]
[1734515924631,7.17540774,216.87,216.84,2.3063]
[1734515924938,7.17540774,216.87,216.85,4.8119637]
[1734515925236,7.17540774,216.87,216.84,2.3063]
[1734515925836,7.17540774,216.87,216.85,4.81140119]
[1734515926037,7.17540774,216.87,216.84,2.3063]
[1734515926435,7.17540774,216.87,216.85,4.81146487]
[1734515926630,7.17540774,216.87,216.84,2.3063]
[1734515927239,7.17540774,216.87,216.85,4.81087453]
[1734515927649,7.17540774,216.87,216.84,2.3063]
[1734515928038,7.17540774,216.87,216.8,11.68250774]
[1734515928039,7.17540774,216.87,216.85,4.8105121]
[1734515928238,7.17540774,216.87,216.85,7.1168121]
[1734515928441,7.17540774,216.87,216.85,2.3063]
[1734515929139,7.17540774,216.87,216.86,2.3062]
[1734515929941,2.3058,216.9,216.87,2.306]
[1734515930140,7.17540774,216.88,216.87,2.306]
[1734515932442,7.17540774,216.88,216.8,4.5071]
[1734515932443,2.3061,216.87,216.8,4.5071]
[1734515932948,2.3061,216.87,216.81,4.81002424]
[1734515933143,2.3061,216.87,216.82,4.81002424]
[1734515933545,10.838534,216.91,216.83,4.81002424]
[1734515933746,9.48140774,216.88,216.83,4.81002424]
[1734515933941,9.48140774,216.88,216.84,4.81002424]
[1734515934148,7.17540774,216.88,216.86,2.3061]
[1734515934444,7.17540774,216.9,216.87,4.81002424]
[1734515934748,9.48120774,216.9,216.82,7.17540774]
[1734515934944,9.48120774,216.9,216.83,4.8098197]
[1734515935345,9.48120774,216.9,216.82,7.17540774]
[1734515935346,9.48120774,216.9,216.86,2.3061]
[1734515935648,2.3059,216.89,216.87,4.8098197]
[1734515935846,2.3059,216.89,216.86,2.3061]
[1734515936249,2.3059,216.89,216.87,4.81005391]
[1734515936449,7.17540774,216.88,216.87,4.81005391]
[1734515936750,7.17540774,216.88,216.86,2.3061]
[1734515938850,7.17540774,216.88,216.87,4.8102098]
[1734515942958,7.17540774,216.88,216.86,2.3061]
[1734515943261,7.17540774,216.88,216.87,4.81020492]
[1734515943958,7.17540774,216.88,216.86,2.3061]
[1734515946561,9.48140774,216.88,216.86,2.3061]
[1734515947064,9.48140774,216.88,216.8,11.68250774]
[1734515947065,9.48140774,216.88,216.85,2.3063]
[1734515947260,9.48140774,216.88,216.86,4.8105928]
[1734515947456,2.3061,216.87,216.8,4.5071]
[1734515947763,10.84006011,216.91,216.81,11.98604261]
[1734515947967,9.48130774,216.89,216.81,11.98604261]
[1734515948161,2.3059,216.89,216.82,4.81063487]
[1734515948357,9.48130774,216.89,216.85,2.3062]
[1734515948663,9.48130774,216.89,216.86,4.81063487]
[1734515948963,7.17540774,216.88,216.87,4.81063487]
[1734515950464,5.45995737,216.92,216.87,4.81063487]
[1734515950665,5.45995737,216.92,216.88,2.3059]
[1734515950666,2.3056,216.91,216.88,2.3059]
[1734515950963,7.17540774,216.92,216.88,2.3059]
[1734515951164,2.3056,216.92,216.88,2.3059]
[1734515951466,7.17540774,216.91,216.88,2.3059]
[1734515951967,7.17540774,216.91,216.89,2.3058]
[1734515952464,2.3054,216.94,216.87,7.17540774]
[1734515952658,9.48080774,216.94,216.88,7.82758685]
[1734515953061,9.48080774,216.94,216.89,4.81008685]
[1734515953259,9.48080774,216.94,216.9,4.81008685]
[1734515953454,7.17540774,216.94,216.88,3.0175]
[1734515953660,190.3164097,216.97,216.89,7.17540774]
[1734515953856,7.17540774,216.96,216.9,8.28816486]
[1734515954056,7.17540774,216.96,216.9,4.80905271]
[1734515954264,7.17540774,216.96,216.93,2.3053]
[1734515956867,7.17540774,216.95,216.93,2.3053]
[1734515962267,9.48070774,216.95,216.91,2.3056]
[1734515962571,7.17540774,216.92,216.91,2.3056]
[1734515963566,7.17540774,216.92,216.87,2.306]
[1734515963769,7.17540774,216.9,216.87,2.306]
[1734515965975,2.3057,216.91,216.8,4.496]
[1734515965976,10.80928404,216.96,216.84,7.17540774]
[1734515966168,197.93385804,216.98,216.88,7.17540774]
[1734515966169,7.17540774,216.95,216.88,7.17540774]
[1734515966575,7.17540774,216.95,216.86,7.17540774]
[1734515966769,7.17540774,216.95,216.87,3.0463]
[1734515967475,9.48060774,216.95,216.91,2.3056]
[1734515975778,7.17540774,216.93,216.91,2.3056]
[1734515976886,9.48080774,216.93,216.89,2.3058]
[1734515977082,7.17540774,216.91,216.89,2.3058]
[1734515977377,2.3059,216.89,216.8,1.4715]
[1734515977584,2.3059,216.89,216.81,3.1221]
[1734515977878,2.3059,216.89,216.85,2.3062]
[1734515978084,2.306,216.88,216.85,2.3062]
[1734515979379,7.17540774,216.87,216.81,3.1221]
[1734515979582,9.48150774,216.87,216.84,2.3064]
[1734515981784,7.17540774,216.87,216.85,2.3062]
[1734515987889,2.306,216.88,216.85,2.3062]
[1734515990895,9.48130774,216.89,216.85,2.3062]
[1734515994695,9.48130774,216.89,216.86,2.3061]
[1734515994897,2.3059,216.89,216.86,2.3061]
[1734515995195,9.48130774,216.89,216.86,2.3061]
[1734515995599,2.3059,216.89,216.86,2.3061]
[1734515995799,9.48130774,216.89,216.86,2.3061]
[1734515996394,9.48130774,216.89,216.85,2.3062]
[1734515997598,2.306,216.88,216.85,2.3062]
[1734515999297,7.17540774,216.87,216.84,2.3063]
[1734515999497,7.17540774,216.85,216.74,4.6149]
[1734515999698,7.17540774,216.85,216.78,7.17540774]
[1734516000297,9.48170774,216.85,216.82,2.3066]
[1734516000603,7.17540774,216.85,216.78,7.17540774]
[1734516001102,7.17540774,216.83,216.75,4.655]
[1734516001303,7.17540774,216.81,216.75,3.0807]
[1734516002498,9.48220774,216.81,216.77,2.3071]
[1734516004402,9.48220774,216.81,216.75,3.0807]
[1734516004598,9.48220774,216.81,216.78,2.307]
[1734516007601,2.3069,216.8,216.76,2.3071]
[1734516008007,7.17540774,216.79,216.76,2.3071]
[1734516008304,2.3062,216.86,216.76,2.3071]
[1734516008604,7.17540774,216.79,216.76,2.3071]
[1734516009202,7.17540774,216.77,216.69,3.1078]
[1734516009404,7.17540774,216.77,216.72,2.3076]
[1734516009706,2.3073,216.76,216.72,2.3076]
[1734516010400,7.17540774,216.75,216.72,2.3076]
[1734516010596,9.48270774,216.75,216.72,2.3076]
[1734516011297,2.3075,216.74,216.68,7.17540774]
[1734516011504,9.48290774,216.74,216.68,7.17540774]
[1734516012004,2.3076,216.73,216.7,2.3078]
[1734516012401,2.3076,216.73,216.69,2.308]
[1734516013504,7.17540774,216.72,216.63,1.5743]
[1734516013704,7.17540774,216.72,216.65,7.17540774]
[1734516014002,234.52913892,216.82,216.67,7.17540774]
[1734516014199,220.69913892,216.82,216.69,7.17540774]
[1734516014401,7.17540774,216.78,216.71,7.17540774]
[1734516015302,28.30560031,216.85,216.73,7.17540774]
[1734516015499,7.17540774,216.81,216.75,7.17540774]
[1734516015704,225.38277255,216.9,216.75,7.17540774]
[1734516015705,192.35975328,216.88,216.75,7.17540774]
[1734516015907,7.17540774,216.81,216.78,2.3069]
[1734516018507,7.17540774,216.81,216.75,7.17540774]
[1734516018803,9.48210774,216.81,216.77,2.3071]
[1734516020508,7.17540774,216.84,216.77,7.17540774]
[1734516020909,7.17540774,216.84,216.8,2.3067]
[1734516022708,7.17540774,216.84,216.77,7.17540774]
[1734516023305,7.17540774,216.84,216.81,2.3066]
[1734516023501,56.24099596,216.91,216.81,7.17540774]
[1734516023705,56.24099596,216.91,216.83,7.17540774]
[1734516023901,56.24099596,216.91,216.85,7.17540774]
[1734516024706,56.24099596,216.91,216.88,2.3059]
[1734516026910,56.24099596,216.91,216.83,1.5119]
[1734516027108,7.17540774,216.88,216.83,1.5119]
[1734516027307,7.17540774,216.9,216.84,7.17540774]
[1734516027507,56.24099596,216.91,216.89,2.3057]
[1734516028106,56.24099596,216.91,216.88,2.3059]
[1734516028407,7.17540774,216.9,216.88,2.3059]
[1734516028604,7.17540774,216.9,216.83,1.5119]
[1734516028809,7.17540774,216.87,216.83,1.5119]
[1734516029007,7.17540774,216.87,216.82,2.931]
[1734516029610,9.48150774,216.87,216.82,5.2375]
[1734516030206,9.48150774,216.87,216.83,2.3064]
[1734516030812,7.17540774,216.85,216.82,2.931]
[1734516031007,7.17540774,216.85,216.73,1.4534]
[1734516031214,7.17540774,216.85,216.78,7.17540774]
[1734516032212,9.48170774,216.85,216.81,2.3066]
[1734516032408,7.17540774,216.83,216.74,3.1404]
[1734516032613,7.17540774,216.83,216.76,7.17540774]
[1734516033006,9.48190774,216.83,216.76,7.17540774]
[1734516033206,7.17540774,216.81,216.78,2.307]
[1734516034108,9.48220774,216.81,216.76,2.3071]
[1734516034513,7.17540774,216.81,216.76,2.3071]
[1734516034712,7.17540774,216.81,216.74,3.1404]
[1734516034713,7.17540774,216.79,216.74,3.1404]
[1734516035009,7.17540774,216.79,216.75,2.3073]
[1734516035513,2.3071,216.78,216.74,2.3074]
[1734516037009,2.3071,216.77,216.74,2.3074]
[1734516038416,9.48250774,216.77,216.74,2.3074]
[1734516038616,9.48250774,216.77,216.73,2.3075]
[1734516038812,7.17540774,216.77,216.64,4.5036]
[1734516039016,9.48280774,216.75,216.67,9.48360774]
[1734516039214,7.17540774,216.75,216.67,7.17540774]
[1734516039617,7.17540774,216.75,216.71,2.3078]
[1734516040423,9.48280774,216.75,216.71,2.3078]
[1734516040615,7.17540774,216.73,216.68,2.3081]
[1734516041618,2.3078,216.72,216.68,2.3081]
[1734516043218,2.3078,216.71,216.68,2.3081]
[1734516045215,2.3074,216.75,216.71,2.3077]